fUST/lending_fUST_20250221
["ID","MTS","AMOUNT","RATE_DAILY","PERIOD"]
[353906678,1740126641087,-509.18981889,0.00013944,2]
[353906679,1740126641097,-500.0,0.00013944,2]
[353906680,1740126641106,-500.0,0.00013944,2]
[353906681,1740126641115,-500.0,0.00013944,2]
[353906682,1740126641123,-500.0,0.00013944,2]
[353906683,1740126641132,-500.0,0.00013944,2]
[353906684,1740126641141,-500.0,0.00013944,2]
[353906685,1740126641150,-500.0,0.00013944,2]
[353906686,1740126641160,-500.0,0.00013944,2]
[353906687,1740126641168,-553.69,0.00013945,2]
[353906688,1740126641178,-500.0,0.00013945,2]
[353906689,1740126641187,-1252.26,0.00013945,2]
[353906690,1740126641199,-500.0,0.00013945,2]
[353906691,1740126641210,-827.88,0.00013945,2]
[353906692,1740126641221,-500.0,0.00013945,2]
[353906693,1740126641231,-500.0,0.00013945,2]
[353906694,1740126641241,-500.0,0.00013945,2]
[353906695,1740126641250,-500.0,0.00013945,2]
[353906696,1740126641259,-500.0,0.00013945,2]
[353906697,1740126641267,-577.22,0.00013945,2]
[353906698,1740126641277,-500.0,0.00013945,2]
[353906699,1740126641286,-500.0,0.00013945,2]
[353906700,1740126641295,-500.0,0.00013945,2]
[353906701,1740126641304,-500.0,0.00013945,2]
[353906702,1740126641313,-593.2,0.00013945,2]
[353906703,1740126641322,-507.07882964,0.00013945,2]
[353906704,1740126641331,-500.0,0.00013945,2]
[353906705,1740126641340,-504.72208563,0.00013945,2]
[353906706,1740126641350,-500.0,0.00013945,2]
[353906707,1740126641358,-500.0,0.00013945,2]
[353906708,1740126641368,-500.0,0.00013945,2]
[353906709,1740126641377,-500.0,0.00013945,2]
[353906710,1740126641386,-1138.49,0.00013945,2]
[353906711,1740126641394,-500.0,0.00013945,2]
[353906712,1740126641404,-500.0,0.00013945,2]
[353906713,1740126641414,-500.0,0.00013945,2]
[353906714,1740126641422,-569.28,0.00013945,2]
[353906715,1740126641431,-500.0,0.00013945,2]
[353906716,1740126641440,-500.0,0.00013945,2]
[353906717,1740126641449,-500.0,0.00013945,2]
[353906718,1740126641457,-561.83,0.00013945,2]
[353906719,1740126641466,-1101.01,0.00013945,2]
[353906720,1740126641475,-500.0,0.00013945,2]
[353906721,1740126641484,-500.0,0.00013945,2]
[353906722,1740126641493,-5000.0,0.00013945,2]
[353906723,1740126641502,-500.0,0.00013945,2]
[353906724,1740126641512,-5000.0,0.00013945,2]
[353906725,1740126641522,-5000.0,0.00013945,2]
[353906726,1740126641531,-5000.0,0.00013945,2]
[353906727,1740126641539,-5000.0,0.00013945,2]
[353906728,1740126641548,-5000.0,0.00013945,2]
[353906729,1740126641558,-5000.0,0.00013945,2]
[353906730,1740126641567,-5000.0,0.00013945,2]
[353906731,1740126641576,-5000.0,0.00013945,2]
[353906732,1740126641586,-5000.0,0.00013945,2]
[353906733,1740126641595,-5000.0,0.00013945,2]
[353906734,1740126641604,-5000.0,0.00013945,2]
[353906735,1740126641613,-5000.0,0.00013945,2]
[353906736,1740126641622,-5000.0,0.00013945,2]
[353906737,1740126641632,-5000.0,0.00013945,2]
[353906738,1740126641641,-5000.0,0.00013945,2]
[353906739,1740126641650,-5000.0,0.00013945,2]
[353906740,1740126641659,-5000.0,0.00013945,2]
[353906741,1740126641667,-5000.0,0.00013945,2]
[353906742,1740126641676,-5000.0,0.00013945,2]
[353906743,1740126641685,-5000.0,0.00013945,2]
[353906744,1740126641694,-5000.0,0.00013945,2]
[353906745,1740126641702,-5011.533028,0.00013945,2]
[353906746,1740126641711,-500.0,0.00013945,2]
[353906747,1740126641720,-500.0,0.00013945,2]
[353906748,1740126641729,-957.96,0.00013945,2]
[353906749,1740126641738,-500.0,0.00013945,2]
[353906750,1740126641747,-500.0,0.00013945,2]
[353906751,1740126641756,-4538.08,0.00013945,2]
[353906752,1740126641765,-495.4709574,0.00013945,2]
[353906753,1740126641774,-1086.35,0.00013945,2]
[353906754,1740126641782,-2072.32,0.00013945,2]
[353906755,1740126641791,-500.0,0.00013945,2]
[353906756,1740126641800,-1845.32,0.00013945,2]
[353906757,1740126641809,-1021.33,0.00013945,2]
[353906758,1740126641818,-9716.41,0.00013945,2]
[353906759,1740126641830,-500.0,0.00013945,2]
[353906760,1740126641839,-833.11,0.00013945,2]
[353906761,1740126641848,-2571.73,0.00013945,2]
[353906762,1740126641857,-500.0,0.00013945,2]
[353906763,1740126641866,-575.78,0.00013945,2]
[353906764,1740126641875,-500.0,0.00013945,2]
[353906765,1740126641884,-500.0,0.00013945,2]
[353906766,1740126641893,-1279.01,0.00013945,2]
[353906767,1740126641903,-718.46,0.00013945,2]
[353906768,1740126641914,-946.49,0.00013945,2]
[353906769,1740126641922,-500.0,0.00013945,2]
[353906770,1740126641931,-18313.93,0.00013945,2]
[353906771,1740126641941,-1997.41,0.00013945,2]
[353906772,1740126641950,-949.62,0.00013945,2]
[353906773,1740126641964,-601.48,0.00013945,2]
[353906774,1740126641978,-532.54,0.00013945,2]
[353906775,1740126641991,-3490.45,0.00013945,2]
[353906776,1740126642004,-500.0,0.00013945,2]
[353906777,1740126642015,-627.24,0.00013945,2]
[353906778,1740126642026,-500.0,0.00013945,2]
[353906779,1740126642038,-7334.37,0.00013945,2]
[353906780,1740126642050,-1843.65,0.00013945,2]
[353906781,1740126642062,-1113.9,0.00013945,2]
[353906782,1740126642074,-1005.09,0.00013945,2]
[353906783,1740126642086,-3517.19,0.00013945,2]
[353906784,1740126642097,-689.34,0.00013945,2]
[353906785,1740126642109,-12469.4163622,0.00013967,2]
[353906786,1740126642121,-501.07938361,0.00013973,2]
[353906787,1740126642133,-502.16312422,0.00013973,2]
[353906788,1740126642146,-517.12891589,0.00013973,2]
[353906789,1740126642159,-279.99377584,0.00013973,2]
[353906790,1740126642170,-500.0,0.00013973,2]
[353906791,1740126642181,-1002.17246199,0.00013988,2]
[353906792,1740126642193,-151.0,0.00014,2]
[353906793,1740126642204,-151.0,0.00014,2]
[353906794,1740126642218,-1000.0,0.00014,14]
[353906795,1740126642230,-553.69,0.00014027,2]
[353906796,1740126642241,-500.0,0.00014027,2]
[353906797,1740126642252,-1252.26,0.00014027,2]
[353906798,1740126642262,-500.0,0.00014027,2]
[353906799,1740126642273,-827.88,0.00014027,2]
[353906800,1740126642284,-500.0,0.00014027,2]
[353906801,1740126642296,-500.0,0.00014027,2]
[353906802,1740126642307,-514.31133253,0.00014027,2]
[353906803,1740126642319,-500.0,0.00014027,2]
[353906804,1740126642332,-500.0,0.00014027,2]
[353906805,1740126642343,-577.22,0.00014027,2]
[353906806,1740126642356,-500.0,0.00014027,2]
[353906807,1740126642368,-500.0,0.00014027,2]
[353906808,1740126642380,-500.0,0.00014027,2]
[353906809,1740126642392,-500.0,0.00014027,2]
[353906810,1740126642404,-593.2,0.00014027,2]
[353906811,1740126642415,-500.0,0.00014027,2]
[353906813,1740126642425,-500.0,0.00014027,2]
[353906815,1740126642435,-500.0,0.00014027,2]
[353906817,1740126642446,-500.0,0.00014027,2]
[353906819,1740126642459,-504.89213378,0.00014027,2]
[353906820,1740126642471,-1138.49,0.00014027,2]
[353906821,1740126642484,-500.0,0.00014027,2]
[353906822,1740126642496,-500.0,0.00014027,2]
[353906823,1740126642507,-439.94796735,0.00014027,2]
[353906824,1740126642518,-569.28,0.00014027,2]
[353906825,1740126642529,-500.0,0.00014027,2]
[353906827,1740126642540,-500.0,0.00014027,2]
[353906830,1740126642552,-268.90884737,0.00014027,2]
[353906831,1740126642566,-561.83,0.00014027,2]
[353906832,1740126642576,-1101.01,0.00014027,2]
[353906833,1740126642587,-500.0,0.00014027,2]
[353906834,1740126642597,-500.0,0.00014027,2]
[353906835,1740126642608,-512.34563179,0.00014027,2]
[353906836,1740126642619,-500.0,0.00014027,2]
[353906837,1740126642629,-500.0,0.00014027,2]
[353906839,1740126642640,-957.96,0.00014027,2]
[353906841,1740126642653,-500.0,0.00014027,2]
[353906843,1740126642667,-500.0,0.00014027,2]
[353906845,1740126642677,-4538.08,0.00014027,2]
[353906848,1740126642687,-1086.35,0.00014027,2]
[353906852,1740126642698,-2072.32,0.00014027,2]
[353906856,1740126642709,-500.0,0.00014027,2]
[353906859,1740126642720,-1845.32,0.00014027,2]
[353906861,1740126642732,-1021.33,0.00014027,2]
[353906862,1740126642742,-9716.41,0.00014027,2]
[353906863,1740126642753,-500.0,0.00014027,2]
[353906864,1740126642764,-833.11,0.00014027,2]
[353906865,1740126642774,-2571.73,0.00014027,2]
[353906866,1740126642785,-500.0,0.00014027,2]
[353906867,1740126642795,-575.78,0.00014027,2]
[353906869,1740126642806,-500.0,0.00014027,2]
[353906870,1740126642817,-500.0,0.00014027,2]
[353906871,1740126642830,-1279.01,0.00014027,2]
[353906872,1740126642841,-718.46,0.00014027,2]
[353906873,1740126642852,-946.49,0.00014027,2]
[353906874,1740126642863,-500.0,0.00014027,2]
[353906875,1740126642875,-18313.93,0.00014027,2]
[353906876,1740126642886,-1997.41,0.00014027,2]
[353906877,1740126642897,-949.62,0.00014027,2]
[353906878,1740126642910,-601.48,0.00014027,2]
[353906879,1740126642922,-532.54,0.00014027,2]
[353906880,1740126642933,-3490.45,0.00014027,2]
[353906881,1740126642944,-500.0,0.00014027,2]
[353906882,1740126642955,-627.24,0.00014027,2]
[353906883,1740126642966,-500.0,0.00014027,2]
[353906884,1740126642978,-7334.37,0.00014027,2]
[353906885,1740126642989,-1843.65,0.00014027,2]
[353906886,1740126643001,-1113.9,0.00014027,2]
[353906887,1740126643013,-1005.09,0.00014027,2]
[353906888,1740126643025,-3517.19,0.00014027,2]
[353906889,1740126643037,-300.26844897,0.000141,2]
[353906890,1740126643048,-151.0,0.000141,2]
[353906891,1740126643060,-151.0,0.000141,2]
[353906892,1740126643071,-553.69,0.00014109,2]
[353906893,1740126643082,-500.0,0.00014109,2]
[353906894,1740126643092,-1252.26,0.00014109,2]
[353906895,1740126643103,-500.0,0.00014109,2]
[353906896,1740126643114,-827.88,0.00014109,2]
[353906897,1740126643127,-500.0,0.00014109,2]
[353906898,1740126643139,-500.0,0.00014109,2]
[353906899,1740126643150,-500.0,0.00014109,2]
[353906900,1740126643161,-312.56967895,0.00014109,2]
[353906901,1740126643171,-577.22,0.00014109,2]
[353906902,1740126643180,-500.0,0.00014109,2]
[353906903,1740126643191,-500.0,0.00014109,2]
[353906904,1740126643200,-500.0,0.00014109,2]
[353906905,1740126643211,-500.0,0.00014109,2]
[353906906,1740126643220,-593.2,0.00014109,2]
[353906907,1740126643229,-500.0,0.00014109,2]
[353906908,1740126643239,-500.0,0.00014109,2]
[353906909,1740126643248,-500.0,0.00014109,2]
[353906910,1740126643259,-500.0,0.00014109,2]
[353906911,1740126643412,-1138.49,0.00014109,2]
[353906912,1740126643431,-500.0,0.00014109,2]
[353906913,1740126643442,-500.0,0.00014109,2]
[353906914,1740126643452,-569.28,0.00014109,2]
[353906915,1740126643461,-500.0,0.00014109,2]
[353906916,1740126643471,-500.0,0.00014109,2]
[353906917,1740126643480,-561.83,0.00014109,2]
[353906918,1740126643490,-1101.01,0.00014109,2]
[353906919,1740126643499,-500.0,0.00014109,2]
[353906920,1740126643508,-500.0,0.00014109,2]
[353906921,1740126643517,-500.0,0.00014109,2]
[353906922,1740126643527,-500.0,0.00014109,2]
[353906923,1740126643536,-957.96,0.00014109,2]
[353906924,1740126643546,-500.0,0.00014109,2]
[353906925,1740126643555,-500.0,0.00014109,2]
[353906926,1740126643564,-4538.08,0.00014109,2]
[353906927,1740126643573,-1086.35,0.00014109,2]
[353906928,1740126643582,-500.0,0.00014109,2]
[353906929,1740126643592,-2072.32,0.00014109,2]
[353906930,1740126643601,-1845.32,0.00014109,2]
[353906931,1740126643610,-1021.33,0.00014109,2]
[353906932,1740126643619,-9716.41,0.00014109,2]
[353906933,1740126643628,-500.0,0.00014109,2]
[353906934,1740126643637,-151.0,0.00014109,2]
[353906935,1740126643647,-833.11,0.00014109,2]
[353906936,1740126643657,-2571.73,0.00014109,2]
[353906937,1740126643668,-500.0,0.00014109,2]
[353906938,1740126643677,-575.78,0.00014109,2]
[353906939,1740126643687,-500.0,0.00014109,2]
[353906940,1740126643696,-500.0,0.00014109,2]
[353906941,1740126643706,-1279.01,0.00014109,2]
[353906942,1740126643716,-718.46,0.00014109,2]
[353906943,1740126643725,-946.49,0.00014109,2]
[353906944,1740126643735,-500.0,0.00014109,2]
[353906945,1740126643744,-18313.93,0.00014109,2]
[353906946,1740126643753,-1997.41,0.00014109,2]
[353906947,1740126643762,-151.0,0.00014109,2]
[353906948,1740126643771,-949.62,0.00014109,2]
[353906949,1740126643780,-601.48,0.00014109,2]
[353906950,1740126643789,-3490.45,0.00014109,2]
[353906951,1740126643798,-532.54,0.00014109,2]
[353906952,1740126643807,-500.0,0.00014109,2]
[353906953,1740126643816,-627.24,0.00014109,2]
[353906954,1740126643830,-151.0,0.00014109,2]
[353906955,1740126643839,-500.0,0.00014109,2]
[353906956,1740126643848,-7334.37,0.00014109,2]
[353906957,1740126643857,-1843.65,0.00014109,2]
[353906958,1740126643866,-289.336,0.00014109,2]
[353906959,1740126643875,-1113.9,0.00014109,2]
[353906960,1740126643884,-1005.09,0.00014109,2]
[353906961,1740126643893,-3517.19,0.00014109,2]
[353906962,1740126643904,-500.0,0.00014173,2]
[353906963,1740126643914,-500.0,0.00014173,2]
[353906964,1740126643924,-500.0,0.00014173,2]
[353906965,1740126643933,-500.0,0.00014173,2]
[353906966,1740126643942,-500.0,0.00014173,2]
[353906967,1740126643951,-508.28951394,0.00014173,2]
[353906968,1740126643961,-500.0,0.00014173,2]
[353906969,1740126643971,-501.3968598,0.00014173,2]
[353906970,1740126643980,-500.0,0.00014173,2]
[353906971,1740126643989,-553.69,0.00014191,2]
[353906972,1740126643998,-500.0,0.00014191,2]
[353906973,1740126644007,-1252.26,0.00014191,2]
[353906974,1740126644016,-500.0,0.00014191,2]
[353906975,1740126644025,-827.88,0.00014191,2]
[353906976,1740126644035,-500.0,0.00014191,2]
[353906977,1740126644044,-500.0,0.00014191,2]
[353906978,1740126644053,-500.0,0.00014191,2]
[353906979,1740126644062,-577.22,0.00014191,2]
[353906980,1740126644072,-500.0,0.00014191,2]
[353906981,1740126644081,-500.0,0.00014191,2]
[353906982,1740126644090,-500.0,0.00014191,2]
[353906983,1740126644099,-500.0,0.00014191,2]
[353906984,1740126644109,-593.2,0.00014191,2]
[353906985,1740126644118,-500.0,0.00014191,2]
[353906986,1740126644127,-500.0,0.00014191,2]
[353906987,1740126644137,-500.0,0.00014191,2]
[353906988,1740126644146,-500.0,0.00014191,2]
[353906989,1740126644155,-199.196782,0.00014191,2]
[353906990,1740126644164,-1138.49,0.00014191,2]
[353906991,1740126644172,-500.0,0.00014191,2]
[353906992,1740126644181,-500.0,0.00014191,2]
[353906993,1740126644190,-151.0,0.00014191,2]
[353906994,1740126644199,-569.28,0.00014191,2]
[353906995,1740126644208,-500.0,0.00014191,2]
[353906996,1740126644217,-500.0,0.00014191,2]
[353906997,1740126644225,-561.83,0.00014191,2]
[353906998,1740126644235,-1101.01,0.00014191,2]
[353906999,1740126644245,-500.0,0.00014191,2]
[353907000,1740126644255,-500.0,0.00014191,2]
[353907001,1740126644265,-500.0,0.00014191,2]
[353907002,1740126644274,-500.0,0.00014191,2]
[353907003,1740126644283,-957.96,0.00014191,2]
[353907004,1740126644291,-500.0,0.00014191,2]
[353907005,1740126644301,-500.0,0.00014191,2]
[353907006,1740126644310,-4538.08,0.00014191,2]
[353907007,1740126644319,-161.522347,0.00014191,2]
[353907008,1740126644329,-161.522347,0.00014191,2]
[353907009,1740126644339,-1086.35,0.00014191,2]
[353907010,1740126644348,-500.0,0.00014191,2]
[353907011,1740126644357,-2072.32,0.00014191,2]
[353907012,1740126644366,-1845.32,0.00014191,2]
[353907013,1740126644375,-1021.33,0.00014191,2]
[353907014,1740126644384,-9716.41,0.00014191,2]
[353907015,1740126644393,-500.0,0.00014191,2]
[353907016,1740126644402,-833.11,0.00014191,2]
[353907017,1740126644412,-2571.73,0.00014191,2]
[353907018,1740126644422,-609.84795924,0.00014191,2]
[353907019,1740126644431,-575.78,0.00014191,2]
[353907020,1740126644440,-562.53035668,0.00014191,2]
[353907021,1740126644450,-500.0,0.00014191,2]
[353907022,1740126644461,-1279.01,0.00014191,2]
[353907023,1740126644471,-718.46,0.00014191,2]
[353907024,1740126644479,-946.49,0.00014191,2]
[353907025,1740126644488,-500.0,0.00014191,2]
[353907026,1740126644498,-18313.93,0.00014191,2]
[353907027,1740126644507,-1997.41,0.00014191,2]
[353907028,1740126644516,-949.62,0.00014191,2]
[353907029,1740126644526,-601.48,0.00014191,2]
[353907030,1740126644535,-3490.45,0.00014191,2]
[353907031,1740126644544,-532.54,0.00014191,2]
[353907032,1740126644553,-500.0,0.00014191,2]
[353907033,1740126644564,-627.24,0.00014191,2]
[353907034,1740126644574,-500.0,0.00014191,2]
[353907035,1740126644583,-7334.37,0.00014191,2]
[353907036,1740126644593,-1843.65,0.00014191,2]
[353907037,1740126644602,-1113.9,0.00014191,2]
[353907038,1740126644611,-1005.09,0.00014191,2]
[353907039,1740126644623,-3517.19,0.00014191,2]
[353907040,1740126644633,-355.2534587,0.00014192,2]
[353907041,1740126644645,-355.2534587,0.00014192,2]
[353907042,1740126644659,-355.2534587,0.00014192,2]
[353907043,1740126644671,-151.423635,0.00014192,2]
[353907044,1740126644681,-1284.0025602,0.00014198,2]
[353907045,1740126644691,-225.85220959,0.00014198,2]
[353907046,1740126644700,-160.0,0.00014199,2]
[353907047,1740126644709,-49804.79049797,0.000142,5]
[353907048,1740126644718,-452293.96341609,0.000142,5]
[353907049,1740126644734,-28453.77632995,0.000142,5]
[353907052,1740126726721,400.0,0.00013699,7]
[353907054,1740126778797,1000.0,0.00014,14]
[353907057,1740126858076,1000.0,0.00019,120]
[353907059,1740126905766,197.742253,9.041e-05,2]
[353907061,1740127050094,1000.0,0.00014,10]
[353907063,1740127118624,500.0,0.000139,7]
[353907064,1740127119427,500.0,0.000139,7]
[353907065,1740127120172,500.0,0.000139,7]
[353907066,1740127120920,500.0,0.000139,7]
[353907067,1740127122032,500.0,0.000139,7]
[353907068,1740127122789,500.0,0.000139,7]
[353907069,1740127123544,500.0,0.000139,7]
[353907070,1740127124286,500.0,0.000139,7]
[353907071,1740127125038,500.0,0.000139,7]
[353907072,1740127126159,639.03,0.000139,7]
[353907112,1740127832249,-500.0,0.00011588,2]
[353907113,1740127832259,-300.0,0.00012999,2]
[353907114,1740127832269,-14700.0,0.00013,2]
[353907115,1740127832354,-448.46367761,0.00013,2]
[353907127,1740127838040,-1720.62508588,0.00013,2]
[353907128,1740127838050,-503.846676,0.00013698,2]
[353907129,1740127838059,-500.0,0.00013698,2]
[353907130,1740127838069,-500.0,0.00013698,2]
[353907131,1740127838079,-503.65917019,0.00013698,2]
[353907132,1740127838088,-504.48725787,0.00013698,2]
[353907133,1740127838098,-501.90251124,0.00013698,2]
[353907134,1740127838107,-500.0,0.00013698,2]
[353907135,1740127838116,-502.49019953,0.00013698,2]
[353907136,1740127838126,-501.65499714,0.00013698,2]
[353907137,1740127838135,-500.0,0.00013698,2]
[353907138,1740127838145,-500.0,0.00013698,2]
[353907139,1740127838154,-502.00897485,0.00013698,2]
[353907140,1740127838163,-500.0,0.00013698,2]
[353907141,1740127838173,-500.0,0.00013698,2]
[353907142,1740127838182,-507.30055197,0.00013698,2]
[353907143,1740127838191,-505.79153031,0.00013698,2]
[353907144,1740127838203,-500.0,0.00013698,2]
[353907145,1740127838212,-503.10042185,0.00013698,2]
[353907146,1740127838222,-502.60213939,0.00013698,2]
[353907147,1740127838231,-627.41118416,0.00013698,2]
[353907148,1740127838240,-500.0,0.00013698,2]
[353907149,1740127838249,-506.30303285,0.00013698,2]
[353907150,1740127838258,-500.0,0.00013698,2]
[353907151,1740127838268,-501.54687498,0.00013698,2]
[353907152,1740127838281,-513.14105949,0.00013698,2]
[353907153,1740127838290,-247.49734324,0.00013698,2]
[353907154,1740127838299,-500.0,0.00013698,2]
[353907155,1740127838308,-500.0,0.00013698,2]
[353907156,1740127838318,-345.05095398,0.00013698,2]
[353907157,1740127838327,-500.0,0.00013698,2]
[353907158,1740127838337,-500.0,0.00013698,2]
[353907159,1740127838347,-500.0,0.00013698,2]
[353907160,1740127838358,-501.03479758,0.00013698,2]
[353907161,1740127838367,-501.63937723,0.00013698,2]
[353907162,1740127838376,-500.0,0.00013698,2]
[353907163,1740127838386,-500.0,0.00013698,2]
[353907164,1740127838395,-500.0,0.00013698,2]
[353907165,1740127838404,-500.0,0.00013698,2]
[353907166,1740127838414,-500.0,0.00013698,2]
[353907167,1740127838423,-500.0,0.00013698,2]
[353907168,1740127838433,-500.0,0.00013698,2]
[353907169,1740127838442,-500.74471077,0.00013698,2]
[353907170,1740127838453,-500.0,0.00013698,2]
[353907171,1740127838463,-500.0,0.00013698,2]
[353907172,1740127838472,-500.0,0.00013698,2]
[353907173,1740127838481,-500.0,0.00013698,2]
[353907174,1740127838491,-501.10617869,0.00013698,2]
[353907175,1740127838500,-503.19530357,0.00013698,2]
[353907176,1740127838510,-500.50645448,0.00013698,2]
[353907177,1740127838519,-500.90308038,0.00013698,2]
[353907178,1740127838528,-500.0,0.00013698,2]
[353907179,1740127838537,-501.35923253,0.00013698,2]
[353907180,1740127838547,-500.0,0.00013698,2]
[353907181,1740127838556,-500.0,0.00013698,2]
[353907182,1740127838566,-500.59222718,0.00013698,2]
[353907183,1740127838575,-500.0,0.00013698,2]
[353907184,1740127838585,-724.4,0.00013698,2]
[353907185,1740127838596,-597.46209863,0.00013698,2]
[353907186,1740127838606,-501.93919288,0.00013698,2]
[353907187,1740127838616,-500.0,0.00013698,2]
[353907188,1740127838628,-501.9233025,0.00013698,2]
[353907189,1740127838637,-500.0,0.00013698,2]
[353907190,1740127838646,-309.34917873,0.00013698,2]
[353907191,1740127838655,-500.0,0.00013698,2]
[353907192,1740127838665,-500.0,0.00013698,2]
[353907193,1740127838674,-500.0,0.00013698,2]
[353907194,1740127838684,-500.0,0.00013698,2]
[353907195,1740127838694,-505.07,0.00013698,2]
[353907196,1740127838704,-495.4709574,0.00013698,2]
[353907197,1740127838713,-500.0,0.00013698,2]
[353907198,1740127838723,-500.0,0.00013698,2]
[353907199,1740127838733,-300.37751837,0.00013698,2]
[353907200,1740127838742,-500.0,0.00013698,2]
[353907201,1740127838751,-500.0,0.00013698,2]
[353907202,1740127838760,-500.0,0.00013698,2]
[353907203,1740127838769,-519.05,0.00013698,2]
[353907204,1740127838779,-500.0,0.00013698,2]
[353907205,1740127838788,-500.0,0.00013698,2]
[353907206,1740127838798,-504.41319185,0.00013698,2]
[353907207,1740127838807,-500.0,0.00013698,2]
[353907208,1740127838817,-500.0,0.00013698,2]
[353907209,1740127838827,-502.33459018,0.00013698,2]
[353907210,1740127838836,-503.52415687,0.00013698,2]
[353907211,1740127838846,-500.0,0.00013698,2]
[353907212,1740127838856,-507.55564009,0.00013698,2]
[353907213,1740127838865,-255.15336829,0.00013698,2]
[353907214,1740127838879,-244.84663171,0.00013698,2]
[353907215,1740127838888,-500.0,0.00013698,2]
[353907216,1740127838897,-500.0,0.00013698,2]
[353907217,1740127838907,-500.0,0.00013698,2]
[353907218,1740127838916,-501.50404887,0.00013698,2]
[353907219,1740127838925,-503.33530109,0.00013698,2]
[353907220,1740127838934,-500.0,0.00013698,2]
[353907221,1740127838944,-500.0,0.00013698,2]
[353907222,1740127838953,-530.67,0.00013698,2]
[353907223,1740127838962,-500.0,0.00013698,2]
[353907224,1740127838971,-500.0,0.00013698,2]
[353907225,1740127838981,-500.0,0.00013698,2]
[353907226,1740127838991,-500.0,0.00013698,2]
[353907227,1740127839000,-504.9690969,0.00013698,2]
[353907228,1740127839009,-3582.22,0.00013698,2]
[353907229,1740127839018,-500.0,0.00013698,2]
[353907230,1740127839028,-445.68690983,0.00013698,2]
[353907231,1740127839037,-501.52709678,0.00013698,2]
[353907232,1740127839046,-500.0,0.00013698,2]
[353907233,1740127839056,-500.0,0.00013698,2]
[353907234,1740127839065,-190.67,0.00013698,2]
[353907235,1740127839075,-750.62,0.00013698,2]
[353907236,1740127839084,-500.0,0.00013698,2]
[353907237,1740127839093,-500.0,0.00013698,2]
[353907238,1740127839102,-500.0,0.00013698,2]
[353907239,1740127839112,-500.0,0.00013698,2]
[353907240,1740127839121,-500.0,0.00013698,2]
[353907241,1740127839131,-500.0,0.00013698,2]
[353907242,1740127839140,-838.22,0.00013698,2]
[353907243,1740127839148,-500.0,0.00013698,2]
[353907244,1740127839157,-500.0,0.00013698,2]
[353907245,1740127839166,-500.0,0.00013698,2]
[353907246,1740127839176,-500.0,0.00013698,2]
[353907247,1740127839186,-1697.99,0.00013698,2]
[353907248,1740127839195,-4234.78,0.00013698,2]
[353907249,1740127839205,-893.66,0.00013698,2]
[353907250,1740127839214,-978.64,0.00013698,2]
[353907251,1740127839224,-500.0,0.00013698,2]
[353907252,1740127839244,-500.0,0.00013698,2]
[353907253,1740127839254,-500.0,0.00013698,2]
[353907254,1740127839264,-728.98,0.00013698,2]
[353907255,1740127839277,-1944.34,0.00013698,2]
[353907256,1740127839287,-500.0,0.00013698,2]
[353907257,1740127839297,-500.0,0.00013698,2]
[353907258,1740127839307,-500.0,0.00013698,2]